bitfinex/quotes_SOLUSD_20240824
["timestamp","ask_amount","ask_price","bid_price","bid_amount"]
[1724489966334,6.4149,155.89,155.84,1.28309958]
[1724489966543,6.4153,155.88,155.84,1.28309958]
[1724489966731,6.4153,155.88,155.74,23.68225162]
[1724489966946,16.60133599,155.87,155.8,6.4182]
[1724489967127,16.60133599,155.87,155.78,10.18563599]
[1724489967128,10.18563599,155.87,155.78,6.419]
[1724489967443,10.18563599,155.87,155.74,32.40771614]
[1724489967444,16.56823599,155.87,155.79,1.28336658]
[1724489967615,6.416,155.86,155.79,7.70206658]
[1724489968237,6.4165,155.85,155.79,7.70206658]
[1724489968441,6.4165,155.85,155.79,6.4187]
[1724489968641,16.56823599,155.87,155.8,1.28336606]
[1724489969017,20.0,155.86,155.8,1.28336606]
[1724489970451,26.416,155.86,155.8,1.28336606]
[1724489970954,26.416,155.86,155.8,7.70156606]
[1724489971135,26.416,155.86,155.81,1.27852887]
[1724489971518,6.416,155.86,155.81,1.27852887]
[1724489976657,6.4165,155.85,155.81,1.27852887]
[1724489976954,5.9165,155.85,155.8,46.28335769]
[1724489978655,5.9165,155.85,155.8,52.70175769]
[1724489978864,5.9165,155.85,155.81,1.27865922]
[1724489980725,0.8387862,155.94,155.88,46.28297479]
[1724489980956,0.8387862,155.94,155.89,0.12549]
[1724489981165,0.8387862,155.94,155.89,1.40804482]
[1724489981338,0.8387862,155.94,155.89,11.59368081]
[1724489981726,0.8387862,155.94,155.9,51.414]
[1724489981941,0.8387862,155.94,155.91,1.28248014]
[1724489982129,0.8387862,155.94,155.89,0.12549]
[1724489982527,0.8387862,155.94,155.89,1.4080601]
[1724489982733,0.8387862,155.94,155.89,7.8226601]
[1724489983135,0.8387862,155.94,155.89,6.54009]
[1724489983342,0.8387862,155.94,155.89,0.12549]
[1724489983567,0.8387862,155.94,155.89,1.40807376]
[1724489983746,0.8387862,155.94,155.9,6.4141]
[1724489984141,0.8387862,155.94,155.91,1.28254152]
[1724489984553,0.8387862,155.94,155.91,6.4137]
[1724489984941,0.8387862,155.94,155.9,1.28251631]
[1724489985263,0.8387862,155.94,155.91,0.12549]
[1724489985555,0.8387862,155.94,155.91,1.40284596]
[1724489985930,0.8387862,155.94,155.91,1.407935]
[1724489987266,0.8387862,155.94,155.91,7.821635]
[1724489988166,0.8387862,155.94,155.91,6.53919]
[1724489988336,0.8387862,155.94,155.92,1.28247184]
[1724489990352,0.8387862,155.94,155.89,6.4144]
[1724489990736,11.02442219,155.94,155.89,6.4144]
[1724489990940,11.02442219,155.94,155.9,1.28268626]
[1724489991141,0.8387862,155.94,155.9,1.28268626]
[1724489991439,0.8387862,155.94,155.9,11.46832225]
[1724489991643,0.8387862,155.94,155.88,10.18563599]
[1724489991970,0.8387862,155.94,155.89,1.28259069]
[1724489992766,0.8387862,155.94,155.9,6.4141]
[1724489992939,0.8387862,155.94,155.91,1.28255452]
[1724489993436,0.8387862,155.94,155.88,1.28256308]
[1724489993642,0.8387862,155.94,155.9,6.414]
[1724489993858,0.8387862,155.94,155.9,7.69665114]
[1724489994168,0.8387862,155.94,155.91,6.53929]
[1724489994464,0.8387862,155.94,155.91,6.3638]
[1724489994967,0.8387862,155.94,155.91,6.2511]
[1724489995150,0.8387862,155.94,155.92,1.28261522]
[1724489995553,0.8387862,155.94,155.87,10.18563599]
[1724489995741,0.8387862,155.94,155.88,46.53355038]
[1724489995940,0.8387862,155.94,155.88,45.25098]
[1724489996345,0.8387862,155.94,155.9,6.4142]
[1724489997268,0.8387862,155.94,155.88,6.54019]
[1724489997444,0.8387862,155.94,155.89,6.4146]
[1724490000064,15.0416,155.93,155.89,6.4146]
[1724490000459,15.0416,155.93,155.88,6.4151]
[1724490001482,15.0416,155.93,155.86,1.2828367]
[1724490001643,15.0416,155.93,155.9,6.4143]
[1724490001840,15.0416,155.93,155.89,6.4147]
[1724490002068,15.0416,155.93,155.9,7.69702698]
[1724490002366,15.0416,155.93,155.9,6.4143]
[1724490002868,8.5966,155.93,155.91,1.28271452]
[1724490003074,8.5966,155.93,155.9,6.4143]
[1724490004442,8.5966,155.93,155.91,1.28269405]
[1724490004668,8.5966,155.93,155.9,6.4143]
[1724490004860,0.8387862,155.94,155.91,1.40273938]
[1724490005166,0.8387862,155.94,155.93,6.4131]
[1724490006770,0.8387862,155.94,155.93,6.53859]
[1724490007189,0.8387862,155.94,155.93,6.4131]
[1724490009765,0.8387862,155.94,155.92,6.4135]
[1724490010179,0.8387862,155.94,155.93,6.4131]
[1724490010488,0.8387862,155.94,155.92,6.4134]
[1724490010697,0.8387862,155.94,155.89,1.28255078]
[1724490010881,0.8387862,155.94,155.91,6.4139]
[1724490011775,0.8387862,155.94,155.92,6.4135]
[1724490013671,10.18563599,155.93,155.86,1.28260365]
[1724490013865,10.18563599,155.93,155.87,0.12549]
[1724490014063,10.18563599,155.93,155.84,23.2405]
[1724490015168,10.18563599,155.93,155.89,6.4145]
[1724490015568,10.18563599,155.93,155.9,6.414]
[1724490016575,10.18563599,155.93,155.89,6.4147]
[1724490016974,0.8387862,155.94,155.9,10.18563599]
[1724490017290,0.8387862,155.94,155.92,29.654]
[1724490017502,0.8387862,155.94,155.93,1.53321159]
[1724490017678,0.8387862,155.94,155.93,46.53321159]
[1724490017992,0.8387862,155.94,155.93,45.25098]
[1724490018183,0.8387862,155.94,155.93,56.71345652]
[1724490019194,0.8387862,155.94,155.93,45.25098]
[1724490019377,0.8387862,155.94,155.93,55.43661599]
[1724490019984,0.8387862,155.94,155.93,10.43661599]
[1724490020182,0.8387862,155.94,155.93,45.25098]
[1724490021278,0.8387862,155.94,155.93,55.43661599]
[1724490021797,0.8387862,155.94,155.93,45.25098]
[1724490022595,0.8387862,155.94,155.93,46.53302571]
[1724490023700,0.8387862,155.94,155.92,6.4135]
[1724490024199,11.02442219,155.94,155.89,5.73637907]
[1724490024371,11.02442219,155.94,155.87,7.24364732]
[1724490024705,0.8387862,155.94,155.87,7.24364732]
[1724490025269,0.8387862,155.94,155.91,6.4138]
[1724490025469,0.8387862,155.94,155.92,6.4134]
[1724490031200,0.64639218,155.94,155.89,7.01956154]
[1724490031381,0.64639218,155.94,155.92,6.4133]
[1724490032017,0.64639218,155.94,155.9,1.2825098]
[1724490032306,0.64639218,155.94,155.86,5.73783449]
[1724490032487,0.64639218,155.94,155.86,7.02052549]
[1724490032687,0.64639218,155.94,155.86,5.73783449]
[1724490033076,0.64639218,155.94,155.85,5.73783449]
[1724490033411,0.64639218,155.94,155.89,6.4146]
[1724490034204,25.96389605,155.94,155.89,6.4146]
[1724490035975,25.96389605,155.94,155.88,6.4151]
[1724490036180,25.96389605,155.94,155.85,1.28282385]
[1724490036401,25.96389605,155.94,155.89,6.4144]
[1724490037778,25.96389605,155.94,155.87,6.4152]
[1724490038300,15.2878,155.93,155.87,6.4152]
[1724490039309,15.2878,155.93,155.88,6.4151]
[1724490039478,15.2878,155.93,155.83,25.31750387]
[1724490039678,15.2878,155.93,155.84,52.14631779]
[1724490039903,15.2878,155.93,155.85,0.12549]
[1724490040283,15.2878,155.93,155.87,6.4152]
[1724490041410,21.7009,155.93,155.87,6.4152]
[1724490042012,21.7009,155.93,155.86,6.416]
[1724490042298,15.2878,155.93,155.87,6.4154]
[1724490043005,21.7011,155.93,155.85,6.416]
[1724490043206,6.6548,155.91,155.86,6.4159]
[1724490043415,6.6548,155.91,155.84,6.4164]
[1724490043416,13.0687,155.91,155.84,6.4164]
[1724490043597,20.0,155.9,155.84,6.4164]
[1724490043790,15.2878,155.89,155.84,6.4164]
[1724490044100,21.7028,155.89,155.82,6.4172]
[1724490044523,10.13648695,155.87,155.82,6.4172]
[1724490044698,31.83898695,155.89,155.83,6.4171]
[1724490045020,20.0,155.88,155.83,6.4171]
[1724490045190,20.0,155.88,155.84,6.4168]
[1724490045612,15.2878,155.89,155.85,6.4163]
[1724490045922,10.13648695,155.88,155.82,6.4172]
[1724490046213,15.2878,155.89,155.83,6.4168]
[1724490046419,1.28903068,155.88,155.83,6.4168]
[1724490047217,1.28903068,155.88,155.84,6.4167]
[1724490048211,15.2878,155.89,155.84,6.4167]
[1724490048707,1.28903068,155.88,155.84,6.4167]
[1724490048997,15.2878,155.89,155.82,6.4172]
[1724490049390,15.2878,155.89,155.83,6.4171]
[1724490052030,15.2878,155.89,155.84,6.4167]
[1724490052323,21.28903068,155.88,155.79,5.7374673]
[1724490052504,1.28903068,155.88,155.84,6.4168]
[1724490052689,20.0,155.88,155.83,6.4172]
[1724490053093,15.2878,155.89,155.84,6.4167]
[1724490053493,15.2878,155.89,155.85,6.4163]
[1724490054918,15.2878,155.89,155.8,1.28337193]
[1724490055108,15.2878,155.89,155.81,25.5863187]
[1724490055433,15.2878,155.89,155.86,6.4156]
[1724490055605,15.2878,155.89,155.87,6.4155]
[1724490055921,15.2878,155.89,155.86,6.4159]
[1724490056101,1.28903068,155.88,155.86,6.4159]
[1724490056517,16.57683068,155.89,155.86,6.4159]
[1724490056728,16.57683068,155.89,155.77,32.04451695]
[1724490056930,22.99153068,155.89,155.83,6.4168]
[1724490057110,21.7025,155.89,155.83,6.4168]
[1724490057294,21.7025,155.89,155.84,6.4168]
[1724490057624,15.2878,155.89,155.84,6.4168]
[1724490058024,21.7025,155.89,155.84,6.4168]
[1724490058228,15.2878,155.89,155.84,6.4167]
[1724490058731,15.2878,155.89,155.85,6.4164]
[1724490059115,15.2878,155.89,155.79,26.61878611]
[1724490059318,15.2878,155.89,155.8,0.12549]
[1724490059623,15.2878,155.89,155.84,6.4167]
[1724490060434,1.28903068,155.88,155.83,6.4169]
[1724490060602,6.4181,155.81,155.74,6.4172]
[1724490060927,27.30563068,155.8,155.7,5.73451644]
[1724490061225,26.62436938,155.79,155.66,25.3353387]
[1724490061429,15.9964,155.78,155.67,5.73451961]
[1724490061610,1.28903068,155.77,155.66,32.05010886]
[1724490061818,1.28903068,155.77,155.66,25.3353387]
[1724490062023,1.28903068,155.76,155.66,25.3353387]
[1724490062421,15.9964,155.78,155.67,1.28434057]
[1724490062602,1.28903068,155.77,155.61,21.9406]
[1724490062927,15.9964,155.78,155.66,25.3353387]
[1724490063102,15.9964,155.78,155.68,25.3353387]
[1724490063304,15.9964,155.78,155.7,25.3353387]
[1724490063523,15.9964,155.78,155.71,1.28410177]
[1724490064132,15.9964,155.78,155.72,0.12549]
[1724490064509,15.9964,155.78,155.73,1.28407576]
[1724490064710,15.9964,155.78,155.74,0.12549]
[1724490064940,15.9964,155.78,155.74,1.40944205]
[1724490066026,15.9964,155.78,155.74,1.28395205]
[1724490066333,15.9964,155.78,155.73,1.28402882]
[1724490066637,15.9964,155.78,155.71,1.28413291]
[1724490067735,15.9964,155.78,155.71,46.28413291]
[1724490067933,15.9964,155.78,155.72,0.12549]
[1724490068142,15.9964,155.78,155.72,1.40962643]
[1724490068611,15.9964,155.78,155.68,25.3353387]
[1724490068803,1.28903068,155.77,155.66,25.3353387]
[1724490069006,1.28903068,155.76,155.66,25.3353387]
[1724490069407,33.00646938,155.75,155.62,6.7153215]
[1724490069632,31.7174387,155.75,155.63,1.28471075]
[1724490069818,45.0,155.74,155.63,1.28471075]
[1724490070419,15.5232,155.73,155.63,1.28471075]
[1724490070833,15.5232,155.73,155.62,25.3353387]
[1724490071138,15.5232,155.73,155.63,1.284713]
[1724490071839,0.13234382,155.64,155.63,1.284713]
[1724490072016,0.13234382,155.64,155.63,21.410203]
[1724490072333,0.13234382,155.64,155.63,66.535693]
[1724490072507,0.13234382,155.64,155.63,65.25098]
[1724490072707,0.13234382,155.64,155.63,66.5356007]
[1724490074841,0.13234382,155.64,155.63,46.7454494]
[1724490075021,0.13234382,155.64,155.63,45.4608287]
[1724490075424,4.382e-05,155.64,155.63,45.4608287]
[1724490076142,4.382e-05,155.64,155.63,45.5863187]
[1724490076347,4.382e-05,155.64,155.63,90.5863187]
[1724490076716,4.382e-05,155.64,155.63,20.0]
[1724490076937,4.382e-05,155.64,155.63,25.3353387]
[1724490077136,4.382e-05,155.64,155.63,45.3353387]
[1724490077631,2.696e-05,155.68,155.63,46.61714348]
[1724490077844,2.696e-05,155.68,155.67,25.3353387]
[1724490078140,2.696e-05,155.68,155.67,45.5863187]
[1724490078337,2.696e-05,155.68,155.67,90.5863187]
[1724490079444,2.696e-05,155.68,155.67,70.5863187]
[1724490079742,2.696e-05,155.68,155.67,45.12549]
[1724490080118,2.696e-05,155.68,155.67,45.25098]
[1724490080748,2.696e-05,155.68,155.67,71.8706665]
[1724490081244,2.696e-05,155.68,155.67,91.8706665]
[1724490082453,2.696e-05,155.68,155.67,90.5863187]
[1724490084750,2.696e-05,155.68,155.67,70.5863187]
[1724490086436,2.696e-05,155.68,155.67,25.3353387]
[1724490086821,2.696e-05,155.68,155.65,25.3353387]
[1724490087019,2.696e-05,155.68,155.66,1.28453837]
[1724490088828,2.696e-05,155.68,155.67,0.12549]
[1724490090730,2.696e-05,155.68,155.67,0.25098]
[1724490090925,2.696e-05,155.68,155.67,25.5863187]
[1724490091131,2.696e-05,155.68,155.67,71.86709794]
[1724490091540,21.9053,155.75,155.67,71.86709794]
[1724490091746,21.9053,155.75,155.64,25.3353387]
[1724490091747,0.12641835,155.68,155.64,25.3353387]
[1724490092077,0.12641835,155.68,155.65,1.28466659]
[1724490092240,0.12641835,155.68,155.66,25.3353387]
[1724490092448,0.12641835,155.68,155.67,1.28446971]
[1724490093541,0.12641835,155.68,155.67,45.12549]
[1724490094447,0.12641835,155.68,155.67,46.40996341]
[1724490095452,0.12641835,155.68,155.64,25.3353387]
[1724490095657,0.12641835,155.68,155.65,46.535451]
[1724490096256,0.12641835,155.68,155.65,45.25098]
[1724490096461,0.12641835,155.68,155.66,1.28458675]
[1724490097129,0.12641835,155.68,155.65,45.12549]
[1724490097747,0.12641835,155.68,155.66,1.28459404]
[1724490100454,0.12641835,155.68,155.65,45.12549]
[1724490101856,0.12641835,155.68,155.66,1.28459444]
[1724490102078,0.12641835,155.68,155.65,45.12549]
[1724490102248,0.12641835,155.68,155.66,1.28462242]
[1724490102559,16.04961835,155.68,155.65,1.28465362]
[1724490102766,16.04961835,155.68,155.63,4.9997947]
[1724490103057,16.04961835,155.68,155.62,25.3353387]
[1724490103371,16.04961835,155.68,155.63,3.71592142]
[1724490103571,15.6931864,155.68,155.63,3.71592142]
[1724490103954,15.6931864,155.68,155.64,0.12549]
[1724490104976,21.9988864,155.68,155.64,0.12549]
[1724490105465,21.9988864,155.68,155.64,3.84133996]
[1724490105673,21.9988864,155.68,155.65,3.71584996]
[1724490106176,21.9988864,155.68,155.64,3.84133996]
[1724490106386,21.9988864,155.68,155.65,3.71584996]
[1724490106952,21.9988864,155.68,155.65,3.71608959]
[1724490107372,21.9988864,155.68,155.65,1.2847953]
[1724490107553,21.9988864,155.68,155.65,10.73836433]
[1724490108048,21.9988864,155.68,155.65,9.45356903]
[1724490108451,21.9988864,155.68,155.65,3.71608875]
[1724490109353,21.9988864,155.68,155.64,3.71608875]
[1724490110857,21.9988864,155.68,155.63,9.45356903]
[1724490111073,21.9988864,155.68,155.61,9.45356903]
[1724490111260,21.9988864,155.68,155.62,9.45356903]
[1724490111460,21.9988864,155.68,155.63,3.71608875]
[1724490111665,1.28903068,155.67,155.62,3.71608875]
[1724490111868,0.11663583,155.64,155.62,3.71608875]
[1724490112159,0.11663583,155.64,155.63,3.71608875]
[1724490112354,0.11663583,155.64,155.61,9.45356903]
[1724490112659,0.11663583,155.64,155.62,3.71608875]
[1724490112858,0.11663583,155.64,155.63,3.71608875]
[1724490113056,0.11663583,155.64,155.61,9.45356903]
[1724490113356,0.11663583,155.64,155.62,3.71608875]
[1724490113572,0.11663583,155.64,155.63,3.71608875]
[1724490113758,0.11663583,155.64,155.61,3.71608875]
[1724490114078,0.11663583,155.64,155.62,5.00114168]
[1724490114265,0.11663583,155.64,155.63,3.71608875]
[1724490115558,0.11663583,155.64,155.63,3.71754305]
[1724490115987,0.11663583,155.64,155.62,1.28505293]
[1724490116162,0.11663583,155.64,155.63,3.7176006]
[1724490116354,0.11663583,155.64,155.62,3.7176006]
[1724490116555,0.11663583,155.64,155.63,3.7176006]
[1724490116749,0.11663583,155.64,155.62,3.7176006]
[1724490116968,0.11663583,155.64,155.63,3.7176006]
[1724490117172,1.40566651,155.64,155.62,3.7176006]
[1724490117364,1.40566651,155.64,155.57,9.45502927]
[1724490117681,1.40566651,155.64,155.58,3.7176006]
[1724490117974,1.40566651,155.64,155.57,9.45502927]
[1724490118184,1.40566651,155.64,155.58,3.7176006]
[1724490118394,1.40566651,155.64,155.55,25.5797343]
[1724490118585,1.40566651,155.64,155.56,29.45825868]
[1724490118890,1.40566651,155.64,155.57,9.45825868]
[1724490119090,1.40566651,155.64,155.58,3.72075791]
[1724490119295,1.40566651,155.64,155.57,9.45825868]
[1724490120976,16.148,155.63,155.57,9.45825868]
[1724490121293,16.148,155.63,155.57,3.72075791]
[1724490121684,16.148,155.63,155.57,9.46065525]
[1724490121886,16.148,155.63,155.57,3.72075791]
[1724490122482,16.148,155.63,155.57,74.11080578]
[1724490122676,16.148,155.63,155.57,70.38734028]
[1724490123287,16.148,155.63,155.57,45.0]
[1724490124292,1.28903068,155.62,155.57,45.0]
[1724490124622,16.148,155.63,155.57,45.0]
[1724490124984,1.28903068,155.62,155.57,45.0]
[1724490126189,16.148,155.63,155.57,45.0]
[1724490126791,16.148,155.63,155.56,20.0]
[1724490126979,1.28903068,155.62,155.56,20.0]
[1724490127310,16.148,155.63,155.56,20.0]
[1724490128501,16.148,155.63,155.56,30.16428744]
[1724490128712,17.43703068,155.63,155.56,30.16428744]
[1724490129102,16.148,155.63,155.56,30.16428744]
[1724490129305,16.148,155.63,155.58,10.16428744]
[1724490129629,16.148,155.63,155.58,11.44958695]
[1724490130103,16.148,155.63,155.58,10.16428744]
[1724490131494,16.148,155.63,155.59,45.12549]
[1724490132183,1.28903068,155.62,155.56,30.16428744]
[1724490132383,17.43703068,155.63,155.57,45.12549]
[1724490135110,17.43703068,155.63,155.56,30.16428744]
[1724490135787,17.43703068,155.63,155.56,10.16428744]
[1724490135982,6.4109,155.62,155.56,10.16428744]
[1724490136189,1.28903068,155.61,155.55,0.19239402]
[1724490136394,1.28903068,155.61,155.56,0.12549]
[1724490136907,6.4109,155.62,155.55,0.19239402]
[1724490136908,1.28903068,155.6,155.55,0.19239402]
[1724490137905,1.28903068,155.61,155.55,0.19239402]
[1724490138285,6.4109,155.62,155.55,0.19239402]
[1724490138286,1.28903068,155.6,155.55,0.19239402]
[1724490141300,16.2201,155.59,155.55,0.19239402]
[1724490141507,1.28903068,155.58,155.55,0.19239402]
[1724490148818,6.2941,155.57,155.55,0.19239402]
[1724490149022,1.28903068,155.56,155.55,0.19239402]
[1724490149396,1.41452068,155.56,155.55,0.19239402]
[1724490149604,37.29802068,155.56,155.55,0.19239402]
[1724490151020,37.29802068,155.56,155.44,5.74260464]
[1724490151223,10.28977744,155.55,155.46,10.16428744]
[1724490151428,1.28903068,155.54,155.46,10.16428744]
[1724490151719,1.28903068,155.54,155.45,30.16428744]
[1724490152701,1.28903068,155.54,155.47,10.16428744]
[1724490153727,35.8835,155.56,155.49,10.16428744]
[1724490154926,1.28903068,155.55,155.49,10.16428744]
[1724490155296,1.28903068,155.55,155.46,45.0]
[1724490155523,1.28903068,155.55,155.47,10.28977744]
[1724490155707,1.28903068,155.55,155.47,10.16428744]
[1724490155917,1.28903068,155.55,155.45,0.12549]
[1724490156117,1.28903068,155.55,155.47,10.16428744]
[1724490156318,1.28903068,155.55,155.45,5.74260915]
[1724490156528,1.28903068,155.55,155.47,10.16428744]
[1724490158721,46.28903068,155.55,155.45,5.74237212]
[1724490159043,46.28903068,155.55,155.47,10.16428744]
[1724490159423,46.28903068,155.55,155.46,10.16428744]
[1724490159626,0.12549,155.54,155.46,10.16428744]
[1724490159822,1.41452068,155.54,155.46,10.16428744]
[1724490160320,1.28903068,155.54,155.46,10.16428744]
[1724490161439,45.12549,155.55,155.46,10.16428744]
[1724490161620,0.12549,155.54,155.46,10.16428744]
[1724490163538,0.12549,155.54,155.46,15.90696756]
[1724490163735,46.04778744,155.56,155.47,1.28641075]
[1724490164043,1.28903068,155.55,155.46,10.16428744]
[1724490164414,46.04778744,155.56,155.46,10.16428744]
[1724490164615,1.28903068,155.54,155.46,10.16428744]
[1724490165545,15.8835,155.56,155.5,10.16428744]
[1724490165924,1.28903068,155.55,155.5,10.16428744]
[1724490166942,1.28903068,155.55,155.48,10.16428744]
[1724490167623,1.28903068,155.55,155.46,10.16428744]
[1724490170042,26.04778744,155.56,155.46,10.16428744]
[1724490170351,45.12549,155.55,155.46,10.16428744]
[1724490170852,1.28903068,155.54,155.46,10.16428744]
[1724490171033,45.12549,155.55,155.46,10.16428744]
[1724490171347,1.28903068,155.54,155.46,10.16428744]
[1724490172033,0.12549,155.55,155.46,11.44883856]
[1724490172226,26.04778744,155.56,155.46,11.44883856]
[1724490172727,1.28903068,155.55,155.47,45.0]
[1724490172937,1.28903068,155.54,155.47,45.0]
[1724490173655,1.28903068,155.55,155.48,10.28977744]
[1724490173846,1.28903068,155.55,155.49,45.0]
[1724490176252,1.28903068,155.54,155.48,10.16428744]
[1724490176457,26.04778744,155.56,155.48,10.16428744]
[1724490176647,26.04778744,155.56,155.46,0.12549]
[1724490176832,26.04778744,155.56,155.47,10.16428744]
[1724490177226,1.28903068,155.55,155.47,10.16428744]
[1724490177431,1.28903068,155.54,155.47,10.16428744]
[1724490179445,1.28903068,155.54,155.48,10.16428744]
[1724490179664,15.8835,155.56,155.48,10.16428744]
[1724490180657,1.28903068,155.55,155.48,10.16428744]
[1724490180946,1.28903068,155.54,155.48,10.16428744]
[1724490181930,1.28903068,155.55,155.48,10.16428744]
[1724490183231,1.28903068,155.55,155.49,45.12549]
[1724490185754,1.28903068,155.55,155.49,0.12549]
[1724490185930,1.28903068,155.55,155.46,0.12549]
[1724490186130,1.28903068,155.55,155.47,10.16428744]
[1724490189061,1.28903068,155.55,155.48,3.73069085]
[1724490189237,1.28903068,155.55,155.47,10.16428744]
[1724490189638,1.28903068,155.55,155.45,45.12549]
[1724490189639,31.45331812,155.55,155.45,55.16428744]
[1724490190440,0.12549,155.54,155.45,10.16428744]
[1724490190642,46.41452068,155.54,155.45,10.16428744]
[1724490190842,1.41452068,155.54,155.45,10.16428744]
[1724490191059,46.41452068,155.54,155.45,10.16428744]
[1724490191241,45.12549,155.54,155.45,11.45072017]
[1724490191748,45.12549,155.54,155.45,10.16428744]
[1724490191949,45.12549,155.54,155.45,11.45070903]
[1724490193060,45.12549,155.54,155.45,10.16428744]
[1724490193466,10.16428744,155.55,155.45,10.16428744]
[1724490193766,1.28903068,155.54,155.45,10.16428744]
[1724490194869,21.28903068,155.54,155.45,10.16428744]
[1724490195559,21.28903068,155.54,155.4,0.8387862]
[1724490195759,21.28903068,155.54,155.45,10.16428744]
[1724490195954,21.7823,155.53,155.45,10.16428744]
[1724490197348,1.28903068,155.52,155.45,10.16428744]
[1724490197548,1.28903068,155.51,155.45,10.16428744]
[1724490198375,31.94658744,155.53,155.44,10.16428744]
[1724490198582,31.94658744,155.53,155.4,0.8387862]
[1724490198583,1.28903068,155.5,155.4,0.8387862]
[1724490198869,1.28903068,155.5,155.42,10.16428744]
[1724490199456,1.28903068,155.5,155.44,10.16428744]
[1724490199656,1.28903068,155.52,155.44,10.16428744]
[1724490199959,1.28903068,155.51,155.43,10.16428744]
[1724490200342,1.28903068,155.51,155.4,0.8387862]
[1724490200565,45.12549,155.52,155.43,10.16428744]
[1724490200872,0.25098,155.51,155.43,10.16428744]
[1724490201084,0.25098,155.51,155.4,2.12548747]
[1724490201298,0.25098,155.51,155.43,10.16428744]
[1724490202085,45.0,155.52,155.4,22.12548747]
[1724490202287,1.28903068,155.51,155.43,10.16428744]
[1724490202766,45.0,155.52,155.42,1.28663643]
[1724490202966,15.6179,155.5,155.42,30.16428744]
[1724490204061,1.28903068,155.49,155.41,0.12549]
[1724490204384,1.28903068,155.49,155.41,10.16428744]
[1724490205889,15.429,155.47,155.4,0.8387862]
[1724490206054,1.28903068,155.46,155.4,0.8387862]
[1724490208187,1.28903068,155.45,155.41,10.16428744]
[1724490208768,1.28903068,155.45,155.4,0.8387862]
[1724490208967,1.28903068,155.45,155.4,11.00307364]
[1724490209367,1.28903068,155.45,155.4,0.8387862]
[1724490209679,1.28903068,155.45,155.4,11.00307364]
[1724490209881,15.429,155.47,155.4,11.00307364]
[1724490210196,1.28903068,155.46,155.4,11.00307364]
[1724490210409,1.28903068,155.45,155.4,11.00307364]
[1724490211275,1.28903068,155.46,155.4,11.00307364]
[1724490212294,1.28903068,155.46,155.4,0.8387862]
[1724490212474,1.28903068,155.46,155.4,11.00307364]
[1724490213081,1.28903068,155.46,155.4,0.8387862]
[1724490213291,1.28903068,155.46,155.4,11.00307364]
[1724490213996,1.28903068,155.46,155.4,0.8387862]
[1724490214205,1.28903068,155.46,155.4,11.00307364]
[1724490216892,1.28903068,155.46,155.4,0.8387862]
[1724490225218,1.28903068,155.46,155.4,0.8387862]
[1724490242719,1.28903068,155.46,155.4,6.58005894]
[1724490243316,1.28903068,155.46,155.4,0.8387862]
[1724490244012,15.429,155.47,155.4,0.8387862]
[1724490244849,1.28903068,155.46,155.4,0.8387862]
[1724490245223,1.28903068,155.45,155.4,0.8387862]
[1724490252021,25.59328744,155.47,155.4,0.8387862]
[1724490252451,1.28903068,155.46,155.4,0.8387862]
[1724490255633,52.72153068,155.46,155.4,0.8387862]
[1724490255841,72.72153068,155.46,155.4,0.8387862]
[1724490256234,10.28977744,155.45,155.4,0.8387862]
[1724490256543,1.28903068,155.44,155.4,0.8387862]
[1724490259643,1.28903068,155.46,155.4,0.8387862]
[1724490259853,21.28903068,155.46,155.4,0.8387862]
[1724490260158,27.72153068,155.46,155.4,0.8387862]
[1724490260346,0.12549,155.45,155.4,0.8387862]
[1724490261059,1.28903068,155.45,155.4,0.8387862]
[1724490262349,15.429,155.47,155.41,10.16428744]
[1724490263856,16.71803068,155.47,155.41,10.16428744]
[1724490265636,15.429,155.47,155.41,10.16428744]
[1724490265845,1.28903068,155.48,155.43,10.16428744]
[1724490266258,15.2368,155.51,155.43,10.16428744]
[1724490266443,15.2368,155.51,155.4,0.8387862]
[1724490266763,15.2368,155.51,155.43,10.16428744]
[1724490266764,1.28903068,155.5,155.43,10.16428744]
[1724490268675,1.28903068,155.5,155.41,0.12549]
[1724490268839,1.28903068,155.5,155.42,10.16428744]
[1724490270274,1.28903068,155.5,155.43,10.16428744]
[1724490270768,66.28903068,155.5,155.41,10.16428744]
[1724490271072,72.71993068,155.5,155.41,10.16428744]
[1724490271368,66.28903068,155.5,155.41,10.16428744]
[1724490272142,72.72003068,155.5,155.41,10.16428744]
[1724490272760,72.72003068,155.5,155.4,45.8387862]
[1724490272942,72.72003068,155.5,155.41,10.16428744]
[1724490273138,10.28977744,155.49,155.41,10.16428744]
[1724490273353,1.28903068,155.48,155.41,10.16428744]
[1724490273569,1.28903068,155.48,155.4,0.8387862]
[1724490273772,66.28903068,155.48,155.4,0.8387862]
[1724490274650,33.02337744,155.47,155.4,0.8387862]